Cogmind - Beta 10.1 @@@ ROGUE MODE // 2020.09.25 @ 21:41:06 Player: Omewes Result: Destroyed by S-10 Pest with Light Assault Rifle Performance ------------- Evolutions (1) 500 Regions Visited (3) 600 Robots Destroyed (21) 105 Value Destroyed (451) 451 Prototype IDs (0) 0 Alien Tech Used (0) 0 Bonus (0) 0 TOTAL SCORE: 1656 Bonus ------- None Cogmind --------- Core Integrity 0/400 Matter 279/300 Energy 99/100 System Corruption 0% Temperature Cool (0) Movement Core (50) Location -9/Materials Parts ------- > --- POWER (1) -------- (None) > --- PROPULSION (3) --- (None) > --- UTILITY (3) ------ (None) > --- WEAPON (2) ------- (None) > --- INVENTORY (4) ---- Flight Unit Improved Heat Sink Improved Heat Sink Small Storage Unit Peak State ------------ > --- POWER ------------ Light Nuclear Core > --- PROPULSION ------- Aluminum Leg Aluminum Leg > --- UTILITY ---------- Improved Heat Sink Small Storage Unit > --- WEAPON ----------- Particle Gun Light EM Pulse Cannon > --- INVENTORY -------- Light Ion Engine Improved Heat Sink Medium Laser Small Laser Light EM Pulse Cannon EMP Blaster [Rating: 14] Favorites ----------- Power Light Nuclear Core Engine Light Ion Engine Power Core Light Nuclear Core Propulsion Aluminum Leg Leg Aluminum Leg Flight Unit Flight Unit Utility Small Storage Unit Device Improved Heat Sink Storage Small Storage Unit Weapon Light EM Pulse Cannon Energy Gun Medium Laser Energy Cannon Light EM Pulse Cannon Ballistic Gun Light Assault Rifle Launcher EMP Blaster Build | -11 -10 -10 -9 ------- Run | Scr Mat Min Mat Slots Evolved 2 | . . . 2 Power . | . . . . Propulsion 1 | . . . 1 Utility 1 | . . . 1 Weapon . | . . . . Parts Attached 41 | 6 11 20 4 Power 6 | 1 2 2 1 Engine 3 | 1 . 1 1 Core 3 | . 2 1 . Reactor . | . . . . Propulsion 10 | 2 . 6 2 Treads . | . . . . Leg 9 | 2 . 5 2 Wheel . | . . . . Hover . | . . . . Flight 1 | . . 1 . Utility 6 | 1 4 . 1 Device 3 | . 2 . 1 Storage 3 | 1 2 . . Processor . | . . . . Hackware . | . . . . Protection . | . . . . Artifact . | . . . . Weapon 19 | 2 5 12 . Energy Gun 5 | . 2 3 . Energy Cannon 5 | . 3 2 . Ballistic Gun 5 | 2 . 3 . Ballistic Cannon . | . . . . Launcher 4 | . . 4 . Special Weapon . | . . . . Impact Weapon . | . . . . Slashing Weapon . | . . . . Piercing Weapon . | . . . . Special Melee Weapon . | . . . . Unidentified Prototypes . | . . . . Parts Lost 16 | . . 11 5 Power 4 | . . 2 2 Propulsion 5 | . . 3 2 Utility . | . . . . Weapon 7 | . . 6 1 Highest Loss Streak 5 | . . 5 5 Average Slot Usage (%) 89 | . 96 93 48 Engine 1 | . 2 . 1 Core 11 | . 11 12 4 Leg 25 | . 28 24 22 Device 12 | . 11 14 7 Storage 13 | . 14 14 7 Energy Gun 3 | . 6 2 . Energy Cannon 13 | . 5 19 . Ballistic Gun 6 | . 15 2 5 Naked Turns 54 | . . . 54 Heaviest Build 25 | 10 25 18 12 Greatest Support 30 | 20 20 20 30 Greatest Overweight (x) 1 | . 1 1 . Average Overweight (x) . | . . . . Largest Inventory Capacity 10 | 6 10 6 6 Average Capacity 5 | 5 6 6 5 Most Carried 6 | 2 6 6 6 Average Carried 4 | 1 3 5 5 Final Capacity 6 | 6 6 6 4 Final Carried 6 | 2 6 6 4 Class Distribution -------------------- 81% | Mutant 18% | Scavenger-Mutant Dominant Class ---------------- Mutant | -10/Materials Mutant | -10/Mines Mutant | -9/Materials Resources | -11 -10 -10 -9 ----------- Run | Scr Mat Min Mat Matter Collected 670 | 211 195 264 . Remotely . | . . . . Salvage Created 664 | . 242 422 . Parts 45 | . 17 28 . Haulers Intercepted 1 | . 1 . . Recyclers Shooed . | . . . . Parts Field Recycled . | . . . . Retrieved Matter . | . . . . Parts Self-Destructed . | . . . . Prevented . | . . . . Kills | -11 -10 -10 -9 ------- Run | Scr Mat Min Mat Combat Hostiles Destroyed 17 | . 4 13 . Guns 10 | . 4 6 . Cannons 1 | . . 1 . AOE 6 | . . 6 . Classes Destroyed 5 | . 2 3 . Worker 1 | . . 1 . Tunneler 2 | . . 2 . Hauler 1 | . 1 . . Swarmer 9 | . . 9 . Grunt 8 | . 4 4 . Best Kill Streak 3 | . 3 3 . Combat Bots Only 3 | . 2 3 . Max Kills in Single Turn 1 | . 1 1 . Gunslinging . | . . . . Exploded 1 | . . 1 . Melee . | . . . . Uniques/NPCs Destroyed . | . . . . Combat | -11 -10 -10 -9 -------- Run | Scr Mat Min Mat Damage Taken 1859 | . 138 872 849 Core 604 | . 28 172 404 Absorbed by Shields . | . . . . Core Remaining (%) 60 | 100 . 20 . Volleys Fired 82 | . 19 53 10 Largest 2 | . 2 2 1 Hottest 112 | . 40 112 20 Shots Fired 113 | . 38 65 10 Gun 89 | . 38 41 10 Cannon 10 | . . 10 . Launcher 14 | . . 14 . Special . | . . . . Kinetic 66 | . 38 18 10 Thermal 23 | . . 23 . Explosive . | . . . . Electromagnetic 24 | . . 24 . Robot Hit Streak 17 | . 7 17 12 Robot Miss Streak 4 | . 2 4 1 Penetration Max . | . . . . Secondary Targets 1 | . 1 . . Max Gunslinging Chain 1 | . 1 . . Shots Hit Robots 74 | . 24 41 9 Core Hits 39 | . 13 23 3 Critical Hits 1 | . . 1 . Critical Kills . | . . . . Critical Parts Destroyed 1 | . . 1 . Melee Attacks . | . . . . Impact . | . . . . Slashing . | . . . . Piercing . | . . . . Sneak Attacks . | . . . . Combat Hostiles . | . . . . Follow-up Attacks . | . . . . Damage Inflicted 1111 | . 226 808 77 Guns 641 | . 226 343 72 Cannons 104 | . . 104 . Explosions 361 | . . 361 . Melee . | . . . . Ramming 5 | . . . 5 Kinetic 388 | . 226 90 72 Thermal 287 | . . 287 . Explosive . | . . . . Electromagnetic 431 | . . 431 . Impact . | . . . . Slashing . | . . . . Piercing . | . . . . Highest Corruption . | . . . . Average Corruption . | . . . . Corruption Purged . | . . . . Overload Shots . | . . . . Overflow Damage 8 | . . 8 . Projectiles . | . . . . Explosions 8 | . . 8 . Melee . | . . . . Knockbacks . | . . . . Impact . | . . . . Kinetic . | . . . . Secondary . | . . . . Self-Inflicted Damage 135 | . . 133 2 Shots 7 | . . 7 . Rammed 1 | . . . 1 Targets Rammed 1 | . . . 1 Kicked . | . . . . Crushed . | . . . . Highest Temperature 15 | . 9 15 . Average Temperature 8 | . 8 7 . Received Heat Transfer 528 | . 81 174 273 Siege Activations . | . . . . Robots Corrupted . | . . . . Combat Hostiles . | . . . . Parts Fried . | . . . . Impact Corruptions . | . . . . Robots Melted . | . . . . Combat Hostiles . | . . . . Parts Melted 1 | . . 1 . Heat Transferred 666 | . . 666 . Parts Sabotaged . | . . . . Parts Stolen . | . . . . Parts Stripped . | . . . . Power Chain Reactions 2 | . . 2 . Missiles Intercepted . | . . . . Alert | -11 -10 -10 -9 ------- Run | Scr Mat Min Mat Peak Influence 145 | . 135 145 65 Initial 35 | . . . 35 Average 44 | . 55 39 48 Maximum Alert Level . | . . . . Low Security (%) 100 | 100 100 100 100 Level 1 . | . . . . Level 2 . | . . . . Level 3 . | . . . . Level 4 . | . . . . Level 5 . | . . . . High Security . | . . . . Max Security . | . . . . Squads Dispatched 1 | . . . 1 Investigation . | . . . . Extermination . | . . . . Reinforcement 1 | . . . 1 Assault . | . . . . Garrison . | . . . . Intercept . | . . . . Construction Impeded . | . . . . Haulers Reinforced . | . . . . Stealth | -11 -10 -10 -9 --------- Run | Scr Mat Min Mat Distress Signals 1 | . . . 1 Communications Jammed . | . . . . Distress Signals . | . . . . Times Spotted 43 | . 7 19 17 Peak Tracking Total 12 | . 3 3 12 Tactical Retreats 5 | . . 3 2 Traps | -11 -10 -10 -9 ------- Run | Scr Mat Min Mat Traps Triggered 1 | . 1 . . Indirectly . | . . . . Trap Hack Attempts . | . . . . Triggered . | . . . . Disarmed . | . . . . Reprogrammed . | . . . . Reused . | . . . . Traps Extracted . | . . . . Installed . | . . . . Triggered . | . . . . Machines | -11 -10 -10 -9 ---------- Run | Scr Mat Min Mat Machines Disabled 2 | . . 2 . Max in Single Turn 1 | . . 1 . Machines Sabotaged . | . . . . Garrisons Compromised . | . . . . Overloaded Fab Kills . | . . . . Fab Network Shutdowns . | . . . . Hacking | -11 -10 -10 -9 --------- Run | Scr Mat Min Mat Machines Accessed 3 | . 3 . . Terminals 3 | . 3 . . Fabricators . | . . . . Repair Stations . | . . . . Recycling Units . | . . . . Scanalyzers . | . . . . Garrison Access . | . . . . Total Hacks 9 | . 9 . . Successful 5 | . 5 . . Failed 4 | . 4 . . Catastrophic . | . . . . Database Lockouts . | . . . . Manual 7 | . 7 . . Terminals 9 | . 9 . . Fabricators . | . . . . Repair Stations . | . . . . Recycling Units . | . . . . Scanalyzers . | . . . . Garrison Access . | . . . . Terminal Hacks 3 | . 3 . . Branch Access Points 1 | . 1 . . Zone Layout 2 | . 2 . . Fabricator Hacks . | . . . . Repair Station Hacks . | . . . . Recycling Unit Hacks . | . . . . Scanalyzer . | . . . . Garrison Access Hacks . | . . . . Unauthorized Hacks 2 | . 2 . . Terminals 2 | . 2 . . Track 2 | . 2 . . Fabricators . | . . . . Repair Stations . | . . . . Recycling Units . | . . . . Scanalyzers . | . . . . Garrison Access . | . . . . Data Cores Recovered . | . . . . Used . | . . . . Hacking Detections 2 | . 2 . . Full Trace Events . | . . . . Feedback Events . | . . . . Feedback Blocked . | . . . . Robot Schematics Acquired . | . . . . Robots Built . | . . . . Matter . | . . . . Time . | . . . . Total Robot Build Rating . | . . . . Part Schematics Acquired . | . . . . Parts Built . | . . . . Matter . | . . . . Time . | . . . . Total Part Build Rating . | . . . . Parts Repaired . | . . . . Time . | . . . . Parts Recycled . | . . . . Recycled Matter . | . . . . Retrieved Matter . | . . . . Retrieved Components . | . . . . Parts Scanalyzed . | . . . . Part Schematics Acquired . | . . . . Parts Damaged . | . . . . Bothacking | -11 -10 -10 -9 ------------ Run | Scr Mat Min Mat Used RIF Installer . | . . . . Robots Hacked . | . . . . Non-combat . | . . . . Combat . | . . . . Robot Hacks Applied . | . . . . Relay Couplers Released . | . . . . Robots Rewired . | . . . . Allies Hacked . | . . . . Hacks Repelled . | . . . . Allies | -11 -10 -10 -9 -------- Run | Scr Mat Min Mat Total Allies . | . . . . Largest Group . | . . . . Highest-Rated Group . | . . . . Highest-Rated Ally . | . . . . Total Orders . | . . . . Ally Attacks . | . . . . Total Damage . | . . . . Kills . | . . . . Allies Corrupted . | . . . . Allies Melted . | . . . . Intel | -11 -10 -10 -9 ------- Run | Scr Mat Min Mat Robot Analysis Total . | . . . . Derelict Logs Recovered 1 | . . 1 . Drone Launches . | . . . . Drone Recoveries . | . . . . Exploration | -11 -10 -10 -9 ------------- Run | Scr Mat Min Mat Turns Passed 1790 | 55 527 1021 187 Spaces Moved 1276 | 41 364 697 174 Core 112 | 6 . . 106 Treads . | . . . . Legs 1164 | 35 364 697 68 Wheels . | . . . . Hover . | . . . . Flight . | . . . . Fastest Speed 50 | 50 120 120 50 Average Speed 116 | 109 121 124 77 Slowest Speed 150 | 120 150 150 120 Overloaded Moves . | . . . . Propulsion Burnouts . | . . . . Robots Hopped . | . . . . Cave-ins Triggered . | . . . . Exploration Rate (%) 45 | 4 58 98 21 Regions Visited 3 Branch Regions 1 Pre-discovered Areas 1 | . . 1 . Known Exits Taken 1 | . 1 . . Unknown Exits Taken 2 | 1 . 1 . Scrap Searched 2 | . . 2 . Spaces Dug . | . . . . Terrain Destroyed 9 | . . 9 . Melee . | . . . . Projectile . | . . . . AOE 9 | . . 9 . Terrain Rammed . | . . . . Walls Destroyed . | . . . . Machines Disabled . | . . . . Actions | -11 -10 -10 -9 --------- Run | Scr Mat Min Mat Total 1461 | 48 414 781 218 Wait 45 | . 8 9 28 Move 1273 | 40 363 696 174 Hop . | . . . . Pick Up 9 | 2 5 2 . Fast Attach 18 | 6 5 6 1 Attach 9 | . 1 5 3 Detach 5 | . 3 1 1 Swap 14 | . 5 9 . Drop 5 | . 5 . . Fire 82 | . 19 53 10 Melee . | . . . . Ram 1 | . . . 1 Kick . | . . . . Crush . | . . . . Escape Stasis . | . . . . Rewire . | . . . . Trap . | . . . . Miscellaneous . | . . . . Route ------- -11/Scrapyard -10/Materials (discovered 3 exits: [*Mat x2] / *Min) -10/Mines (discovered 3 exits: [*Mat x2] / [*Exi]) -9/Materials History --------- Turn | Location | Event 30 | -11/Scrapyard | Discovered new exit (range 15) 56 | -11/Scrapyard | Entered Materials 204 | -10/Materials | Identified exit to Mines 244 | -10/Materials | Discovered new exit (range 13) 300 | -10/Materials | Build established: Mutant 431 | -10/Materials | Discovered new exit (range 11) 583 | -10/Materials | Entered Mines 601 | -10/Mines | Learned Materials trap positions 611 | -10/Mines | Learned location of Storage (-8) 616 | -10/Mines | Met a Derelict bent on vengeance 617 | -10/Mines | Discovered new exit (range 7) 821 | -10/Mines | Discovered new exit (range 8) 841 | -10/Mines | Deemed a non-threat by the Exiles lab entrance 842 | -10/Mines | Discovered new exit (range 5) 1296 | -10/Mines | Found a hidden stash of uninstalled traps 1342 | -10/Mines | Core integrity fell below 50% 1377 | -10/Mines | Lost 5 parts (2p1n2w) 1551 | -10/Mines | Lost 4 parts (1n3w) 1604 | -10/Mines | Entered Materials 1604 | -9/Materials | Evolved 2 slots: Propulsion x1, Utility x1 1605 | -9/Materials | Loaded intel: 10 trap records 1659 | -9/Materials | Build established: Scavenger-Mutant 1737 | -9/Materials | Released all parts (4) 1743 | -9/Materials | Core integrity fell below 50% 1748 | -9/Materials | Core integrity fell below 20% 1767 | -9/Materials | Lost 5 parts (2p2n1w) 1791 | -9/Materials | Destroyed by S-10 Pest with Light Assault Rifle Last Messages --------------- 01612_ ALERT: Hostiles spotted, dispatching reinforcements to Terminal M009. 01612_ O-16 Technician locks terminal. 01617_ Acquired Cooling System. 01685_ Lgt. Nuclear Core destroyed. 01694_ Lgt. Assault Rifle destroyed. 01720_ Aluminum Leg destroyed. 01727_ K-01 Serf destroyed. 01731_ Ion Engine destroyed. 01736_ Aluminum Leg destroyed. 01737_ Released Aluminum Leg. 01737_ Released Sml. Storage Unit. 01737_ Released Aluminum Leg. 01737_ Released Cooling System. 01755_ W-16 Scout sends out distress signal. 01760_ T-07 Excavator is excavating. 01762_ K-01 Serf collects debris. 01764_ T-07 Excavator is excavating. 01778_ Slammed into T-07 Excavator. 01789_ C-30 ARC bursts open, deploying its payload. 01789_ L-31 Rogue unfolds itself. Map ----- +----------------------------------------------------+ | # ! ] ?# #??????????????????????????#### | | ######?# #???????????????????????????# | | ???????# #???????????????????????????# | | ???????#+## #???????????????????????????# " | | ???? # #???????????????????????????# " | | ???"" """ # #############???????????????# " | | ???"" """ # ????????????# | | ???"" """ # #####???????????????????### | | ?? # #?????????????????????????? | | ??""" """ # #?????????????????????????? | | ??""" """ # #?????????????????????????? | | # """ """ + #?????????????????????????? | | # # #?????????????????????????? | | # """ """ # #?????????????????????????? | | ? """ """ # #?????????????????????????? | | ??""" """ # #?????????????????????????? | | ??? # #?????????????????????????? | | ?? # #?????????????????????????? | | ??? # #?????????????????????????? | | ?? ! # #?????????????????????????? | | ??######### #?????????????????????????? | | ??????????# s s#####+####????????????????? | | ??????????# ## #????????????????? | | ??????????# t #????????????????? | | ??????????# #????????????????? | | ??????????# l @ T +????????????????? | | ??????????# #????????????????? | | ????? r g #????????????????? | | ????# ####### #### #????????????????? | | ????????????#+???### ###????????????????? | | ???????????????????? #??????????????????? | | ???????????????????? #??????????????????? | | ????????????????????? #??????????????????? | | ????????????????????? #??????????????????? | | ????????????????????? #??????????????????? | | ?????????????????????? #??????????????????? | | ?????????????????????? #??????????????????? | | ???????????????????????#??????????????????? | | ??????????????????????????????????????????? | | ??????????????????????????????????????????? | | ??????????????????????????????????????????? | | ??????????????????????????????????????????? | | ??????????????????????????????????????????? | | ??????????????????????????????????????????? | | ??????????????????????????????????????????? | | ??????????????????????????????????????????? | | ??????????????????????????????????????????? | | ??????????????????????????????????????????? | | ??????????????????????????????????????????? | | ??????????????????????????????????????????? | +----------------------------------------------------+ Best States ------------- Heat Dissipation 50 Energy Generation 14 Energy Capacity 250 Matter Stores 300 Matter Capacity 300 Sight Range 16 Terrain Scan Density 10 Evasion (%) 50 Item Schematics ----------------- None Robot Schematics ------------------ None Fabricated ------------ Nothing Alien Tech Used ----------------- None Achievements -------------- None Challenges ------------ None Game ------ Seed GatlingDirtyBuckler Manual? 0 Play Time 00:14:44 Cumulative 227.6 hours Start 2020.09.25 @ 21:09:49 End 2020.09.25 @ 21:41:06 Sessions 1 Manual Loads 0 Difficulty Rogue Special Mode None Game No. 178 Rogue 178 Adventurer 0 Explorer 0 Win Type - Total 10 Types 5/0/1/1/0/2/1/0/0 Lore% 74 Gallery% 80 Achievement% 73 Wizard Run 0 Options --------- ASCII 0 Keyboard 1 Movement Numpad Keybinds 0 Fullscreen 1 Font 12/Terminus Map View 83x54 Tactical HUD 1 Map Filters NONE Filters LOW_CONTRAST(13,24,33) Steam 1 RUN: d968b8f3-04ff-4dc4-b1a1-69d9b6e14835